Cogmind - Beta 17 @@@ ROGUE MODE // 2026.08.22 @ 09:16:43 Player: Floof Enjoyer Result: Self-destructed Performance ------------- Evolutions (2) 1000 Regions Visited (5) 1000 Robots Destroyed (35) 175 Value Destroyed (937) 937 Prototype IDs (2) 40 Alien Tech Used (0) 0 Bonus (300) 300 TOTAL SCORE: 3452 Bonus ------- Aligned with FarCom 300 Cogmind --------- Core Integrity 351/550 Matter 279/300 Energy 140/140 System Corruption 0% Temperature Cool (0) Movement Flying (111) Ox1 Location -8/Materials Parts ------- > --- POWER (1) -------- Light Deuterium Engine > --- PROPULSION (4) --- Flight Unit Flight Unit Flight Unit Flight Unit > --- UTILITY (4) ------ Improved Heat Sink Medium Storage Unit Targeting Computer System Shield > --- WEAPON (2) ------- Particle Gun Light Assault Rifle > --- INVENTORY (10) --- Light Ion Engine Experimental Sensor Array ECM Suite Light Armor Plating Tractor Beam Beam Rifle Particle Gun Particle Gun Rocket Launcher Longsword +1 Peak State ------------ > --- POWER ------------ Light Ion Engine > --- PROPULSION ------- Aluminum Leg Aluminum Leg > --- UTILITY ---------- Medium Storage Unit Chronowheel > --- WEAPON ----------- Heavy Assault Rifle Heavy Assault Rifle > --- INVENTORY -------- Light Ion Engine Improved Heat Sink Structural Scanner Sensor Array Experimental Sensor Array Targeting Computer Tractor Beam Rocket Launcher Welding Torch [Rating: 23] Favorites ----------- Power Light Ion Engine Engine Light Ion Engine Power Core Light Nuclear Core Propulsion Aluminum Leg Treads Light Treads Leg Aluminum Leg Wheel Compact Wheel Flight Unit Flight Unit Utility Medium Storage Unit Device Sensor Array Storage Medium Storage Unit Processor Signal Interpreter Hackware System Shield Protection Core Shielding Weapon Heavy Assault Rifle Energy Gun Medium Laser Ballistic Gun Heavy Assault Rifle Launcher Grenade Launcher Build | -11 -10 -10 -10 -9 -8 ------- Run | Yrd Mat Min Exi Min Mat Slots Evolved 4 | . . . . . 4 Power . | . . . . . . Propulsion 2 | . . . . . 2 Utility 2 | . . . . . 2 Weapon . | . . . . . . Parts Attached 49 | 5 8 5 3 . 28 Power 8 | 1 1 1 . . 5 Engine 7 | 1 1 1 . . 4 Core 1 | . . . . . 1 Reactor . | . . . . . . Propulsion 16 | 2 3 1 . . 10 Treads 1 | . . . . . 1 Leg 9 | 2 3 1 . . 3 Wheel 2 | . . . . . 2 Hover . | . . . . . . Flight 4 | . . . . . 4 Utility 12 | . 3 . 3 . 6 Device 6 | . . . 3 . 3 Storage 1 | . 1 . . . . Processor 3 | . 2 . . . 1 Hackware 1 | . . . . . 1 Protection 1 | . . . . . 1 Artifact . | . . . . . . Weapon 13 | 2 1 3 . . 7 Energy Gun 4 | . 1 . . . 3 Energy Cannon . | . . . . . . Ballistic Gun 8 | 2 . 2 . . 4 Ballistic Cannon . | . . . . . . Launcher 1 | . . 1 . . . Special Weapon . | . . . . . . Impact Weapon . | . . . . . . Slashing Weapon . | . . . . . . Piercing Weapon . | . . . . . . Special Melee Weapon . | . . . . . . Unidentified Prototypes 2 | . . . 2 . . Parts Lost 18 | . 4 . . . 14 Power 4 | . . . . . 4 Propulsion 5 | . 1 . . . 4 Utility 3 | . . . . . 3 Weapon 6 | . 3 . . . 3 Highest Loss Streak 8 | . 2 . . . 8 To Critical Strikes 1 | . . . . . 1 Average Backups 8 | 2 6 9 9 10 9 Power 1 | . 1 1 1 1 . Propulsion . | . . . . . . Utility 4 | . 2 5 5 5 4 Weapon 2 | 1 1 1 2 3 4 Tool/Special . | . . . . . . Unused Backups 15 | . 2 2 . 1 10 Power 3 | . 1 . . . 2 Propulsion . | . . . . . . Utility 4 | . 1 . . . 3 Weapon 6 | . . 1 . . 5 Tool/Special 2 | . . 1 . 1 . Average Slot Usage (%) 89 | . 92 94 99 100 74 Engine 11 | . 13 14 14 14 5 Leg 23 | . 27 28 28 28 9 Wheel 1 | . . . . . 3 Device 3 | . . . 6 14 10 Storage 12 | . 12 14 14 14 9 Processor 9 | . 12 14 7 . 3 Hackware 1 | . . . . . 5 Protection 1 | . . . . . 6 Energy Gun 3 | . 6 . . . 6 Ballistic Gun 17 | . 17 18 28 28 10 Peak Build Rating 23 | 5 8 11 23 11 20 Average Rating 9 | 3 6 9 11 11 14 On Entrance 7 | . 5 6 11 11 11 Avg Prop Armor Cover (%) 10 | . . . . . 10 Naked Turns . | . . . . . . Heaviest Build 22 | 7 18 21 20 20 22 Greatest Support 32 | 20 20 20 20 20 32 Greatest Overweight (x) 6 | 1 1 1 . . 6 Average Overweight (x) . | . . . . . . Largest Inventory Capacity 10 | 5 10 10 10 10 10 Average Capacity 9 | 5 9 10 10 10 10 Most Carried 10 | 5 10 10 10 10 10 Average Carried 8 | 2 6 9 9 9 9 Final Capacity 10 | 5 10 10 10 10 10 Final Carried 10 | 2 10 10 10 10 10 Class Distribution -------------------- 50% | Mutant 39% | Scavenger-Mutant 10% | Scavenger-Skirmisher Dominant Class ---------------- Mutant | -10/Materials Scavenger-Mutant | -10/Mines Scavenger-Mutant | -10/Exiles Scavenger-Skirmisher | -9/Mines Scavenger-Mutant | -8/Materials Resources | -11 -10 -10 -10 -9 -8 ----------- Run | Yrd Mat Min Exi Min Mat Matter Collected 1034 | 250 147 136 . 90 411 Remotely . | . . . . . . Salvage Created 1101 | . 406 62 . 60 573 Parts 70 | . 25 3 . 3 39 Haulers Intercepted 1 | . 1 . . . . Recyclers Shooed 4 | . 2 . . . 2 Parts Field Recycled . | . . . . . . Retrieved Matter . | . . . . . . Parts Self-Destructed . | . . . . . . Prevented . | . . . . . . Parts Restored . | . . . . . . Kills | -11 -10 -10 -10 -9 -8 ------- Run | Yrd Mat Min Exi Min Mat Combat Hostiles Destroyed 31 | . 9 3 . 4 15 Guns 28 | . 8 1 . 4 15 AOE 3 | . 1 2 . . . Classes Destroyed 7 | . 4 . . . 3 Builder 1 | . 1 . . . . Hauler 1 | . 1 . . . . Recycler 1 | . . . . . 1 Watcher 1 | . . . . . 1 Swarmer 13 | . 1 1 . 4 7 Grunt 15 | . 8 2 . . 5 Sentry 3 | . . . . . 3 Best Kill Streak 6 | . 3 2 . 4 6 Combat Bots Only 6 | . 3 2 . 4 6 Max Kills in Single Turn 2 | . 1 2 . 1 1 Gunslinging . | . . . . . . Exploded 2 | . 1 2 . . . Melee . | . . . . . . Uniques/NPCs Destroyed . | . . . . . . Combat | -11 -10 -10 -10 -9 -8 -------- Run | Yrd Mat Min Exi Min Mat Hostile Shots Fired 228 | . 76 6 . 35 111 Missed 52 | . 19 3 . 6 24 Hits 176 | . 57 3 . 29 87 Projectile 176 | . 57 3 . 29 87 Critical Strikes 4 | . 1 . . . 3 Actively Blocked 1 | . . . . . 1 Damage Taken 2277 | . 794 65 . 233 1185 Core 436 | . 213 . . 24 199 Absorbed by Shields . | . . . . . . Redirected to Shielding 31 | . . . . . 31 Core Remaining (%) 52 | 100 . . . 5 . Volleys Fired 134 | . 59 6 . 9 60 Largest 2 | . 2 2 . 2 2 Hottest 85 | . 70 46 . 46 85 Shots Fired 233 | . 95 9 . 18 111 Gun 230 | . 95 6 . 18 111 Cannon . | . . . . . . Launcher 3 | . . 3 . . . Special . | . . . . . . Kinetic 146 | . 59 6 . 18 63 Thermal 84 | . 36 . . . 48 Explosive 3 | . . 3 . . . Electromagnetic . | . . . . . . Robot Hit Streak 22 | . 7 1 . 3 22 Robot Miss Streak 4 | . 4 2 . 3 3 Penetration Max . | . . . . . . Secondary Targets 5 | . . . . 2 3 Max Gunslinging Chain 1 | . . . . 1 1 Shots Hit Robots 156 | . 62 2 . 8 84 Core Hits 67 | . 25 6 . 4 32 Critical Kills 1 | . . . . . 1 Critical Parts Destroyed 1 | . . 1 . . . Critical Strikes 10 | . 3 1 . . 6 Burn 8 | . 3 . . . 5 Destroy 2 | . . 1 . . 1 Melee Attacks . | . . . . . . Impact . | . . . . . . Slashing . | . . . . . . Piercing . | . . . . . . Sneak Attacks . | . . . . . . Combat Hostiles . | . . . . . . Follow-up Attacks . | . . . . . . Damage Inflicted 2147 | . 688 189 . 139 1131 Guns 1872 | . 571 31 . 139 1131 Cannons . | . . . . . . Explosions 272 | . 114 158 . . . Melee . | . . . . . . Ramming 3 | . 3 . . . . Kinetic 1093 | . 346 31 . 139 577 Thermal 893 | . 339 . . . 554 Explosive 158 | . . 158 . . . Electromagnetic . | . . . . . . Impact . | . . . . . . Slashing . | . . . . . . Piercing . | . . . . . . Highest Corruption . | . . . . . . Average Corruption . | . . . . . . Corruption Purged . | . . . . . . Corruption Blocked . | . . . . . . Overload Shots . | . . . . . . Overflow Damage 79 | . 79 . . . . Projectiles . | . . . . . . Explosions 79 | . 79 . . . . Melee . | . . . . . . Knockbacks . | . . . . . . Impact . | . . . . . . Kinetic . | . . . . . . Secondary . | . . . . . . Self-Inflicted Damage 182 | . 152 30 . . . Shots 3 | . 2 1 . . . Rammed . | . . . . . . Targets Rammed 2 | . 2 . . . . Kicked 2 | . 2 . . . . Crushed . | . . . . . . Highest Temperature 132 | . 132 5 . . 88 Average Temperature 25 | . 30 4 . . 17 Received Heat Transfer 831 | . 312 15 . . 504 Siege Activations . | . . . . . . Martial Activations . | . . . . . . Shielding Activations . | . . . . . . Robots Disrupted . | . . . . . . Combat Hostiles . | . . . . . . Robots Corrupted . | . . . . . . Combat Hostiles . | . . . . . . Parts Fried . | . . . . . . Impact Corruptions . | . . . . . . Robots Melted . | . . . . . . Combat Hostiles . | . . . . . . Parts Melted 7 | . 1 . . . 6 Heat Transferred 2714 | . 938 . . . 1776 Parts Sabotaged . | . . . . . . Parts Stolen . | . . . . . . Parts Stripped . | . . . . . . Power Chain Reactions . | . . . . . . Alert | -11 -10 -10 -10 -9 -8 ------- Run | Yrd Mat Min Exi Min Mat Maximum Alert Level . | . . . . . . Low Security (%) 100 | 100 100 100 . 100 100 Level 1 . | . . . . . . Level 2 . | . . . . . . Level 3 . | . . . . . . Level 4 . | . . . . . . Level 5 . | . . . . . . High Security . | . . . . . . Max Security . | . . . . . . Peak Influence 161 | . 115 67 . 80 161 Initial 19 | . . 19 . . 19 Average 30 | . 44 10 . 57 30 Influence Increases 957 | . 312 112 . 90 443 Destroy 0b10 Robot/C 620 | . 180 60 . 80 300 Destroy 0b10 Robot/NC 20 | . 10 . . . 10 Destroy Leader 144 | . 42 20 . 10 72 Disable Machine 30 | . 30 . . . . Destroy Structure 53 | . 35 17 . . 1 Lose Combat Pursuer 90 | . 15 15 . . 60 Influence Decreases 813 | . 260 164 . 40 349 Entered New Map 64 | . . 33 . . 31 Time Decay 589 | . 220 131 . 40 198 Lost Part 160 | . 40 . . . 120 Squads Dispatched 4 | . 2 . . . 2 Investigation . | . . . . . . Extermination . | . . . . . . Reinforcement 4 | . 2 . . . 2 Assault . | . . . . . . Garrison . | . . . . . . Intercept . | . . . . . . Searches Triggered . | . . . . . . Construction Impeded . | . . . . . . Haulers Reinforced . | . . . . . . Active Scanning Responses . | . . . . . . Cargo Convoy Interrupts . | . . . . . . Stealth | -11 -10 -10 -10 -9 -8 --------- Run | Yrd Mat Min Exi Min Mat Distress Signals 3 | . 2 . . . 1 Communications Jammed . | . . . . . . Distress Signals . | . . . . . . Times Spotted 54 | . 21 5 . 4 24 Peak Tracking Total 6 | . 6 3 . 4 6 Tactical Retreats 4 | . 1 1 . . 2 Traps | -11 -10 -10 -10 -9 -8 ------- Run | Yrd Mat Min Exi Min Mat Traps Triggered 6 | . 3 . . . 3 Indirectly . | . . . . . . Trap Hack Attempts . | . . . . . . Triggered . | . . . . . . Disarmed . | . . . . . . Reprogrammed . | . . . . . . Reused . | . . . . . . Traps Extracted . | . . . . . . Installed . | . . . . . . Triggered . | . . . . . . Machines | -11 -10 -10 -10 -9 -8 ---------- Run | Yrd Mat Min Exi Min Mat Machines Disabled 3 | . 3 . . . . Max in Single Turn 3 | . 3 . . . . Machines Repaired . | . . . . . . Machines Dismantled . | . . . . . . Machines Sabotaged . | . . . . . . Overloaded Fab Kills . | . . . . . . Hacking | -11 -10 -10 -10 -9 -8 --------- Run | Yrd Mat Min Exi Min Mat Machines Accessed 3 | . 2 . . . 1 Terminals 1 | . 1 . . . . Fabricators . | . . . . . . Repair Stations . | . . . . . . Recycling Units 1 | . 1 . . . . Scanalyzers 1 | . . . . . 1 Garrison Access . | . . . . . . Total Hacks 5 | . 2 . . . 3 Successful 4 | . 2 . . . 2 Failed 1 | . . . . . 1 Catastrophic . | . . . . . . Database Lockouts . | . . . . . . Manual 1 | . . . 1 . . Terminals 1 | . 1 . . . . Fabricators . | . . . . . . Repair Stations . | . . . . . . Recycling Units 1 | . 1 . . . . Scanalyzers 3 | . . . . . 3 Garrison Access . | . . . . . . Terminal Hacks 1 | . 1 . . . . Record 1 | . 1 . . . . Fabricator Hacks . | . . . . . . Repair Station Hacks . | . . . . . . Recycling Unit Hacks 1 | . 1 . . . . Report Inventory 1 | . 1 . . . . Scanalyzer 2 | . . . . . 2 Retrieve Study 2 | . . . . . 2 Garrison Access Hacks . | . . . . . . Unauthorized Hacks . | . . . . . . Terminals . | . . . . . . Fabricators . | . . . . . . Repair Stations . | . . . . . . Recycling Units . | . . . . . . Scanalyzers . | . . . . . . Garrison Access . | . . . . . . Data Cores Recovered . | . . . . . . Used . | . . . . . . Hacking Detections 1 | . . . . . 1 Full Trace Events . | . . . . . . Feedback Events . | . . . . . . Feedback Blocked . | . . . . . . Robot Schematics Acquired . | . . . . . . Robots Built . | . . . . . . Authchips . | . . . . . . Time . | . . . . . . Total Robot Build Rating . | . . . . . . Part Schematics Acquired . | . . . . . . Parts Built . | . . . . . . Authchips . | . . . . . . Time . | . . . . . . Total Part Build Rating . | . . . . . . Part Studies Acquired 2 | . . . . . 2 Parts Repaired . | . . . . . . Time . | . . . . . . Parts Recycled . | . . . . . . Recycled Matter . | . . . . . . Retrieved Matter . | . . . . . . Retrieved Components . | . . . . . . Parts Scanalyzed . | . . . . . . Part Schematics Acquired . | . . . . . . Parts Damaged . | . . . . . . Bothacking | -11 -10 -10 -10 -9 -8 ------------ Run | Yrd Mat Min Exi Min Mat Used RIF Installer . | . . . . . . Robots Hacked . | . . . . . . Non-combat . | . . . . . . Combat . | . . . . . . Robot Hacks Applied . | . . . . . . Relay Couplers Released . | . . . . . . Fabnet Peak Effective % . | . . . . . . Robots Rewired . | . . . . . . Allies Hacked . | . . . . . . Hacks Repelled . | . . . . . . Allies | -11 -10 -10 -10 -9 -8 -------- Run | Yrd Mat Min Exi Min Mat Total Allies . | . . . . . . Largest Group . | . . . . . . Highest-Rated Group . | . . . . . . Highest-Rated Ally . | . . . . . . Total Orders . | . . . . . . Ally Attacks . | . . . . . . Total Damage . | . . . . . . Kills . | . . . . . . Allies Corrupted . | . . . . . . Allies Melted . | . . . . . . Intel | -11 -10 -10 -10 -9 -8 ------- Run | Yrd Mat Min Exi Min Mat Active Infowar (turns) 432 | . . . 121 88 223 Sensors 432 | . . . 121 88 223 Structural 210 | . . . . . 210 Robot Analysis Total . | . . . . . . Derelict Logs Recovered 1 | . . 1 . . . Drone Launches . | . . . . . . Drone Recoveries . | . . . . . . Exploration | -11 -10 -10 -10 -9 -8 ------------- Run | Yrd Mat Min Exi Min Mat Turns Passed 2583 | 53 891 618 262 88 671 Spaces Moved 1630 | 43 582 474 212 50 269 Core 40 | 14 . . . . 26 Treads 9 | . . . . . 9 Legs 1465 | 29 582 474 212 50 118 Wheels 87 | . . . . . 87 Hover . | . . . . . . Flight 29 | . . . . . 29 Fastest Speed 50 | 50 120 120 120 120 100 Average Speed 125 | 99 120 120 120 120 157 Slowest Speed 390 | 120 190 190 120 120 390 Overloaded Moves . | . . . . . . Propulsion Burnouts . | . . . . . . Robots Hopped . | . . . . . . Potential Cave-ins . | . . . . . . Cave-ins Triggered . | . . . . . . Exploration Rate (%) 44 | 3 82 87 61 17 18 Regions Visited 5 Branch Regions 3 Pre-discovered Areas . | . . . . . . Known Exits Taken 2 | . 1 1 . . . Unknown Exits Taken 3 | 1 . . 1 1 . Scrap Searched 4 | . . 2 . 2 . Spaces Dug . | . . . . . . Terrain Destroyed 54 | . 34 20 . . . Melee . | . . . . . . Projectile . | . . . . . . AOE 54 | . 34 20 . . . Terrain Rammed . | . . . . . . Walls Destroyed . | . . . . . . Machines Disabled . | . . . . . . Actions | -11 -10 -10 -10 -9 -8 --------- Run | Yrd Mat Min Exi Min Mat Total 1942 | 52 688 513 221 60 408 Wait 37 | . 8 15 . . 14 Move 1625 | 42 581 473 211 49 269 Hop . | . . . . . . Pick Up 52 | 5 19 6 3 1 18 Fast Attach 20 | 2 4 1 . . 13 Attach 26 | 3 5 1 3 . 14 Detach 1 | . . . 1 . . Swap 17 | . 5 4 . . 8 Drop 28 | . 5 7 3 1 12 Fire 134 | . 59 6 . 9 60 Melee . | . . . . . . Ram . | . . . . . . Kick 2 | . 2 . . . . Crush . | . . . . . . Escape Stasis . | . . . . . . Rewire . | . . . . . . Trap . | . . . . . . Miscellaneous . | . . . . . . Route ------- -11/Scrapyard -10/Materials (discovered 5 exits: *Mat x2 / *Min x2 / *Sub) -10/Mines (discovered 3 exits: *Mat x2 / *Exi) -10/Exiles -9/Mines -8/Materials History --------- Turn | Location | Event 9 | -11/Scrapyard | Discovered new exit (range 15) 54 | -11/Scrapyard | Entered Materials 313 | -10/Materials | Build established: Mutant 329 | -10/Materials | Discovered new exit (range 4) 336 | -10/Materials | Identified exit to Materials 459 | -10/Materials | Discovered new exit (range 6) 465 | -10/Materials | Identified exit to Mines 556 | -10/Materials | Core integrity fell below 50% 707 | -10/Materials | Discovered exit to Mines (range 13) 830 | -10/Materials | Discovered exit to Materials (range 16) 851 | -10/Materials | Discovered new exit (range 10) 865 | -10/Materials | Identified exit to Subcaves 933 | -10/Materials | Core integrity fell below 20% 945 | -10/Materials | Entered Mines 958 | -10/Mines | Met a Derelict bent on vengeance 1055 | -10/Mines | Discovered exit to Materials (range 9) 1132 | -10/Mines | Joined a pair of Derelicts in attacking an 0b10 outpost 1321 | -10/Mines | Found a damaged Exp. Sensor Array with a note attached 1324 | -10/Mines | Found Prototype Device 1396 | -10/Mines | Discovered exit to Materials (range 8) 1403 | -10/Mines | Received a Rocket Launcher from a helpful Derelict 1445 | -10/Mines | Build established: Scavenger-Mutant 1535 | -10/Mines | Found a Scrap Suit stashed away for nefarious purposes 1557 | -10/Mines | Deemed a non-threat by the Exiles lab entrance 1558 | -10/Mines | Discovered new exit (range 5) 1561 | -10/Mines | Identified exit to Exiles 1563 | -10/Mines | Entered Exiles 1593 | -10/Exiles | Met 8R-AWN 1615 | -10/Exiles | Met EX-HEX 1649 | -10/Exiles | Met EX-BIN 1662 | -10/Exiles | Aligned with FarCom system 1663 | -10/Exiles | Given EX-Vault access code 1691 | -10/Exiles | Opened EX-Vault 1699 | -10/Exiles | Found Prototype Device 1700 | -10/Exiles | Identified Chronowheel 1700 | -10/Exiles | Activated Chronowheel 1703 | -10/Exiles | Found Prototype Slashing Weapon 1704 | -10/Exiles | Identified Exp. Sensor Array 1733 | -10/Exiles | Warned to stay clear of 0b10 Research branches 1767 | -10/Exiles | Met EX-DEC 1809 | -10/Exiles | Discovered new exit (range 14) 1825 | -10/Exiles | Left Exiles lab with Longsword +1 1825 | -10/Exiles | Entered Mines 1907 | -9/Mines | Discovered new exit (range 5) 1913 | -9/Mines | Entered Materials 1913 | -8/Materials | Evolved 4 slots: Propulsion x2, Utility x2 2167 | -8/Materials | Lost 8 parts (2p2n2u2w) 2410 | -8/Materials | Lost 5 parts (1p2n1u1w) 2584 | -8/Materials | Self-destructed Last Messages --------------- 02483_ Dropped Beam Rifle+. 02483_ Acquired Particle Gun. 02485_ Dropped Lgt. Assault Rifle. 02485_ U-05 Engineer builds a Door. 02494_ S-10 Pest destroyed. 02502_ Acquired Lgt. Ion Engine. 02515_ S-10 Pest destroyed. 02525_ Acquired Flight Unit. 02526_ Acquired 15 matter. 02534_ Dropped Aluminum Leg. 02542_ Acquired Flight Unit. 02550_ Dropped Flight Unit. 02552_ Dropped Aluminum Leg. 02553_ Acquired Flight Unit. 02554_ Acquired 19 matter. 02556_ Acquired Flight Unit. 02559_ Acquired 15 matter. 02560_ Acquired 18 matter. 02563_ W-25 Informer destroyed. 02571_ Dropped Lgt. Ion Engine. Map ----- +----------------------------------------------------+ | ?????????????????????????????????????????????????? | | ?????????????????????????????????????????????????? | | ????????????????????????? T ???????????????????? | | ???????????????????????? #??????????????????? | | ????????????????????????/ "??????????????????? | | ???????????????????????? ??????????????????? | | ????????????????????????[ "??????????????????? | | ????????????????????????? ???????????????????? | | ????????????????????????? ???????????????????? | | ????????????????????????? ???????????????????? | | ????????????????????????? ???????## ### | | ?????????????????????????# #???????##+########## | | ?????????????????????????# #???????## ## | | ????????????????????????## #???????## ##* =[ | | ????????????????????????## #???????## #% ! | | ????????????????????????## ##??????## ## * " | | ?????????????????# ## ########## ########+# | | ?????????????????######### ########## | | ?????????????????## ## ## # [ | | ?????????????????## "" ## ## """# | | ?????????????????## ""S ##%* ## """# | | ?????????????????## "" ## ## """# ######### | | ?????????????????## ## ## """# ######### | | ???? ########????## ## ## = + ######??? | | ???? ############## ## ## * """# # ??? | | ???? # ##########+###@ #= """# #| ? | | ???? # " # = """# # """ | | ???? # " "T + """# # """"" | | ???? # [# # # """"" | | ???? # ############## [ ######### #! """"" | | ???? ## ################%% ########## # """ | | ???? ## # ##?????????### [[########## # | | ?????## # ##??????????## ########## #####+### | | ?????## ##??????????## # | | ?????## # ##??????????## # | | ?????## ####??????????## ########## #####+### | | ?????## ####???????##### % #### T # !# | | ?????#######?????????######+##### +% # " | | ?????#######?????????## *= # """*# *+ """ T | | ?????????????????????## # """%+% # "" " | | ?????????????????????## # """ #### "" | | ?????????????????????## """ # #??# """ | | ?????????????????????## """"" # """ #??#%""" | | ?????????????????????## """"" # """ #??#!= | | ?????????????????????## """"" # """ #??# ####### | | ?????????????????????## """ # ???###?????? | | ?????????????????????######?##########???????????? | | ?????????????????????######?######???????????????? | | | | | +----------------------------------------------------+ Best States ------------- Heat Dissipation 45 Energy Generation 14 Energy Capacity 250 Matter Stores 300 Matter Capacity 300 Sight Range 16 Robot Scan Range 14 Terrain Scan Density 10 Core Shielding 20 Evasion (%) 55 Targeting Accuracy 5 Recoil Reduction 1 Defensive Hacking 10 Item Schematics ----------------- None Robot Schematics ------------------ None Fabricated ------------ Nothing Repaired ---------- Nothing Studied --------- Hvy. Assault Rifle | -8/Materials | Hacked Beam Rifle | -8/Materials | Hacked Alien Tech Used ----------------- None Achievements -------------- None Challenges ------------ None Game ------ Seed MassStasisDeflector Manual? 0 Play Time 00:21:17 Cumulative 49.4 hours Start 2026.08.22 @ 08:55:46 End 2026.08.22 @ 09:16:43 Sessions 1 Manual Loads 0 Difficulty Rogue Special Mode None Game No. 145 Rogue 145 Adventurer 0 Explorer 0 Win Type - Total 0 Types 0/0/0/0/0/0/0/0/0/0 Lore% 26 Gallery% 36 Achievement% 22 Wizard Run 0 Options --------- Layout 1 ASCII 0 Keyboard 0 Movement Mouse Keybinds 0 Fullscreen 1 Font 24/Smallcaps Map View 50x35 Zoom Use 0% Tactical HUD 1 Map Filters NONE Filters NONE Steam 1 RUN: 36a3fef2-5346-47c8-a489-765ece64d1ba